[Event "Titled Tuesday Blitz August 22 Early 2023"]
[White "KarolKacprzak"]
[Black "Esipenko, Andrey"]
[BlackFideId "24175439"]
[WhiteElo "2682"]
[BlackElo "2944"]
[Result "1/2-1/2"]
[Round "3"]
[TimeControl "180+1"]
[Date "2023.08.22"]
[WhiteClock "0:00:14"]
[BlackClock "0:00:06"]
[Board "25"]

1. e4 {[%clk 0:03:00]}  e6 {[%clk 0:02:56]} 2. d4 {[%clk 0:03:00]}  d5 {[%clk 0:02:56]} 3. e5 {[%clk 0:03:01]}  c5 {[%clk 0:02:56]} 4. c3 {[%clk 0:03:01]}  Nc6 {[%clk 0:02:55]} 5. Nf3 {[%clk 0:03:02]}  Qb6 {[%clk 0:02:55]} 6. Bd3 {[%clk 0:03:01]}  cxd4 {[%clk 0:02:53]} 7. O-O {[%clk 0:03:02]}  Bd7 {[%clk 0:02:52]} 8. Re1 {[%clk 0:03:00]}  Nge7 {[%clk 0:02:49]} 9. h4 {[%clk 0:03:00]}  Rc8 {[%clk 0:02:42]} 10. h5 {[%clk 0:02:59]}  h6 {[%clk 0:02:42]} 11. Nbd2 {[%clk 0:02:59]}  dxc3 {[%clk 0:02:39]} 12. bxc3 {[%clk 0:03:00]}  Na5 {[%clk 0:02:39]} 13. Rb1 {[%clk 0:02:58]}  Qc7 {[%clk 0:02:39]} 14. Ba3 {[%clk 0:02:58]}  Qxc3 {[%clk 0:02:27]} 15. Nb3 {[%clk 0:02:59]}  Nxb3 {[%clk 0:02:08]} 16. Rxb3 {[%clk 0:03:00]}  Qa5 {[%clk 0:02:07]} 17. Qa1 {[%clk 0:02:48]}  b6 {[%clk 0:01:22]} 18. Nd4 {[%clk 0:02:19]}  Nc6 {[%clk 0:01:14]} 19. Nb5 {[%clk 0:02:19]}  Nb4 {[%clk 0:01:05]} 20. Nd6+ {[%clk 0:01:26]}  Bxd6 {[%clk 0:01:02]} 21. exd6 {[%clk 0:01:27]}  Nxd3 {[%clk 0:01:01]} 22. Rxd3 {[%clk 0:01:28]}  O-O {[%clk 0:00:54]} 23. Bb2 {[%clk 0:01:09]}  f6 {[%clk 0:00:47]} 24. Ra3 {[%clk 0:01:09]}  Qd2 {[%clk 0:00:42]} 25. Rxa7 {[%clk 0:01:07]}  Rc2 {[%clk 0:00:23]} 26. Bd4 {[%clk 0:01:07]}  Rf7 {[%clk 0:00:21]} 27. Bxb6 {[%clk 0:00:58]}  e5 {[%clk 0:00:20]} 28. Be3 {[%clk 0:00:57]}  Qd3 {[%clk 0:00:20]} 29. Rd1 {[%clk 0:00:48]}  Qe2 {[%clk 0:00:19]} 30. Rc1 {[%clk 0:00:32]}  d4 {[%clk 0:00:18]} 31. Rxc2 {[%clk 0:00:31]}  Qxc2 {[%clk 0:00:19]} 32. Qc1 {[%clk 0:00:32]}  Qf5 {[%clk 0:00:10]} 33. Bd2 {[%clk 0:00:28]}  Qxh5 {[%clk 0:00:10]} 34. Rxd7 {[%clk 0:00:27]}  Rxd7 {[%clk 0:00:07]} 35. Qc8+ {[%clk 0:00:28]}  Kh7 {[%clk 0:00:07]} 36. Qxd7 {[%clk 0:00:28]}  Qd1+ {[%clk 0:00:08]} 37. Kh2 {[%clk 0:00:29]}  Qxd2 {[%clk 0:00:07]} 38. Qf5+ {[%clk 0:00:29]}  Kh8 {[%clk 0:00:06]} 39. d7 {[%clk 0:00:20]}  Qa5 {[%clk 0:00:06]} 40. Qh5 {[%clk 0:00:19]}  Kh7 {[%clk 0:00:05]} 41. Qe8 {[%clk 0:00:18]}  Qd2 {[%clk 0:00:05]} 42. d8=Q {[%clk 0:00:18]}  Qf4+ {[%clk 0:00:05]} 43. Kh3 {[%clk 0:00:15]}  Qf5+ {[%clk 0:00:05]} 44. Kg3 {[%clk 0:00:14]}  Qf4+ {[%clk 0:00:05]} 45. Kh3 {[%clk 0:00:14]}  Qf5+ {[%clk 0:00:06]} 46. Kh2 {[%clk 0:00:15]}  Qf4+ {[%clk 0:00:06]} 47. Kg1 {[%clk 0:00:14]}  Qc1+ {[%clk 0:00:06]} 48. Kh2 {[%clk 0:00:14]}  Qf4+ {[%clk 0:00:06]} 1/2-1/2


[Site "https://www.chess.com"]

[Event "Titled Tuesday Blitz August 22 Early 2023"]
[White "Djordjevic, Vuk"]
[Black "Kramnik, Vladimir"]
[WhiteFideId "902098"]
[BlackFideId "4101588"]
[WhiteElo "2672"]
[BlackElo "2930"]
[Result "0-1"]
[Round "3"]
[TimeControl "180+1"]
[Date "2023.08.22"]
[WhiteClock "0:00:00"]
[BlackClock "0:00:21"]
[Board "27"]

1. e4 {[%clk 0:03:00]}  c5 {[%clk 0:02:58]} 2. Nc3 {[%clk 0:02:59]}  e6 {[%clk 0:02:58]} 3. g3 {[%clk 0:03:00]}  Nc6 {[%clk 0:02:56]} 4. Bg2 {[%clk 0:02:59]}  Nf6 {[%clk 0:02:56]} 5. d3 {[%clk 0:02:57]}  Be7 {[%clk 0:02:55]} 6. Nge2 {[%clk 0:02:50]}  O-O {[%clk 0:02:53]} 7. O-O {[%clk 0:02:51]}  Rb8 {[%clk 0:02:53]} 8. f4 {[%clk 0:02:24]}  d5 {[%clk 0:02:53]} 9. e5 {[%clk 0:02:18]}  Nd7 {[%clk 0:02:53]} 10. g4 {[%clk 0:02:18]}  b5 {[%clk 0:02:50]} 11. Ng3 {[%clk 0:02:15]}  b4 {[%clk 0:02:49]} 12. Nce2 {[%clk 0:02:04]}  a5 {[%clk 0:02:47]} 13. Be3 {[%clk 0:02:00]}  Ba6 {[%clk 0:02:44]} 14. Rf2 {[%clk 0:01:49]}  a4 {[%clk 0:02:41]} 15. d4 {[%clk 0:01:46]}  Bxe2 {[%clk 0:02:29]} 16. Nxe2 {[%clk 0:01:46]}  cxd4 {[%clk 0:02:29]} 17. Nxd4 {[%clk 0:01:45]}  Nxd4 {[%clk 0:02:29]} 18. Bxd4 {[%clk 0:01:45]}  Bc5 {[%clk 0:02:29]} 19. Bxc5 {[%clk 0:01:35]}  Nxc5 {[%clk 0:02:29]} 20. Qd4 {[%clk 0:01:35]}  Qb6 {[%clk 0:02:25]} 21. f5 {[%clk 0:01:17]}  Nd7 {[%clk 0:02:21]} 22. Qf4 {[%clk 0:01:13]}  Rbc8 {[%clk 0:02:08]} 23. f6 {[%clk 0:00:49]}  Rxc2 {[%clk 0:01:59]} 24. Rf1 {[%clk 0:00:49]}  gxf6 {[%clk 0:01:42]} 25. exf6 {[%clk 0:00:41]}  Kh8 {[%clk 0:01:39]} 26. Kh1 {[%clk 0:00:22]}  Rxf2 {[%clk 0:01:36]} 27. Rxf2 {[%clk 0:00:23]}  Rg8 {[%clk 0:01:22]} 28. Rc2 {[%clk 0:00:12]}  b3 {[%clk 0:01:04]} 29. axb3 {[%clk 0:00:11]}  Qxb3 {[%clk 0:01:00]} 30. Rc7 {[%clk 0:00:09]}  Qd1+ {[%clk 0:00:52]} 31. Bf1 {[%clk 0:00:09]}  Ne5 {[%clk 0:00:45]} 32. h3 {[%clk 0:00:04]}  Nd3 {[%clk 0:00:32]} 33. Qe3 {[%clk 0:00:01]}  Qxf1+ {[%clk 0:00:31]} 34. Kh2 {[%clk 0:00:02]}  Nf4 {[%clk 0:00:26]} 35. Qg3 {[%clk 0:00:01]}  Qe2+ {[%clk 0:00:24]} 36. Kh1 {[%clk 0:00:02]}  Qe5 {[%clk 0:00:21]} 37. Rxf7 {[%clk 0:00:01]}  Ne2 {[%clk 0:00:21]} 38. Kh2 {[%clk 0:00:00]}  Qxg3+ {[%clk 0:00:21]} 0-1


[Site "https://www.chess.com"]

[Event "Titled Tuesday Blitz August 22 Early 2023"]
[White "Kamsky, Gata"]
[Black "Eynullayev, Atilla"]
[WhiteFideId "2000024"]
[BlackFideId "13413570"]
[WhiteElo "2926"]
[BlackElo "2654"]
[Result "1/2-1/2"]
[Round "3"]
[TimeControl "180+1"]
[Date "2023.08.22"]
[WhiteClock "0:00:22"]
[BlackClock "0:00:30"]
[Board "28"]

1. d4 {[%clk 0:03:00]}  Nf6 {[%clk 0:02:59]} 2. Bf4 {[%clk 0:03:01]}  e6 {[%clk 0:02:56]} 3. e3 {[%clk 0:02:58]}  c5 {[%clk 0:02:57]} 4. c3 {[%clk 0:02:58]}  Nc6 {[%clk 0:02:57]} 5. Nd2 {[%clk 0:02:56]}  d5 {[%clk 0:02:57]} 6. Ngf3 {[%clk 0:02:55]}  cxd4 {[%clk 0:02:57]} 7. exd4 {[%clk 0:02:53]}  Nh5 {[%clk 0:02:58]} 8. Be3 {[%clk 0:02:53]}  Bd6 {[%clk 0:02:58]} 9. Ne5 {[%clk 0:02:51]}  Nf6 {[%clk 0:02:59]} 10. f4 {[%clk 0:02:50]}  Qb6 {[%clk 0:02:59]} 11. Qb3 {[%clk 0:02:43]}  Ng8 {[%clk 0:02:59]} 12. Bd3 {[%clk 0:02:37]}  f6 {[%clk 0:02:57]} 13. Nef3 {[%clk 0:02:22]}  Nh6 {[%clk 0:02:43]} 14. g3 {[%clk 0:02:19]}  Bd7 {[%clk 0:02:31]} 15. O-O {[%clk 0:02:07]}  Ng4 {[%clk 0:02:19]} 16. Rae1 {[%clk 0:02:01]}  O-O-O {[%clk 0:02:12]} 17. Qxb6 {[%clk 0:01:50]}  axb6 {[%clk 0:02:12]} 18. Kg2 {[%clk 0:01:29]}  Nxe3+ {[%clk 0:02:08]} 19. Rxe3 {[%clk 0:01:29]}  Kc7 {[%clk 0:01:56]} 20. a3 {[%clk 0:01:28]}  Rde8 {[%clk 0:01:55]} 21. Rfe1 {[%clk 0:01:28]}  Ne7 {[%clk 0:01:46]} 22. Kg1 {[%clk 0:01:26]}  Nc8 {[%clk 0:01:38]} 23. c4 {[%clk 0:01:25]}  Na7 {[%clk 0:01:10]} 24. cxd5 {[%clk 0:01:20]}  exd5 {[%clk 0:01:10]} 25. Rxe8 {[%clk 0:01:20]}  Rxe8 {[%clk 0:01:11]} 26. Rxe8 {[%clk 0:01:19]}  Bxe8 {[%clk 0:01:11]} 27. Bxh7 {[%clk 0:01:19]}  Bb5 {[%clk 0:01:12]} 28. Kf2 {[%clk 0:01:18]}  Nc6 {[%clk 0:01:12]} 29. Ke3 {[%clk 0:01:17]}  Na5 {[%clk 0:01:12]} 30. Bd3 {[%clk 0:01:16]}  Bd7 {[%clk 0:01:13]} 31. Nh4 {[%clk 0:01:14]}  b5 {[%clk 0:01:09]} 32. Nf5 {[%clk 0:01:12]}  Bxf5 {[%clk 0:01:08]} 33. Bxf5 {[%clk 0:01:11]}  Nc4+ {[%clk 0:01:09]} 34. Nxc4 {[%clk 0:01:11]}  bxc4 {[%clk 0:01:03]} 35. h4 {[%clk 0:01:08]}  b5 {[%clk 0:00:51]} 36. g4 {[%clk 0:01:06]}  b4 {[%clk 0:00:47]} 37. axb4 {[%clk 0:00:58]}  Bxb4 {[%clk 0:00:47]} 38. Be6 {[%clk 0:00:57]}  Kd6 {[%clk 0:00:46]} 39. Bf7 {[%clk 0:00:57]}  Be1 {[%clk 0:00:41]} 40. h5 {[%clk 0:00:56]}  Bh4 {[%clk 0:00:41]} 41. Bg8 {[%clk 0:00:51]}  Kc6 {[%clk 0:00:40]} 42. Kf3 {[%clk 0:00:50]}  Kd6 {[%clk 0:00:40]} 43. Bh7 {[%clk 0:00:44]}  Kc6 {[%clk 0:00:38]} 44. Ke3 {[%clk 0:00:43]}  Kd6 {[%clk 0:00:38]} 45. Bc2 {[%clk 0:00:43]}  Kc6 {[%clk 0:00:35]} 46. b3 {[%clk 0:00:43]}  cxb3 {[%clk 0:00:33]} 47. Bxb3 {[%clk 0:00:43]}  Kd6 {[%clk 0:00:34]} 48. Bc2 {[%clk 0:00:42]}  Kc6 {[%clk 0:00:34]} 49. Bg6 {[%clk 0:00:43]}  Kd6 {[%clk 0:00:35]} 50. Bf7 {[%clk 0:00:42]}  Kc6 {[%clk 0:00:35]} 51. Kf3 {[%clk 0:00:41]}  Kd6 {[%clk 0:00:35]} 52. Bg8 {[%clk 0:00:28]}  Kc6 {[%clk 0:00:35]} 53. g5 {[%clk 0:00:26]}  fxg5 {[%clk 0:00:35]} 54. Kg4 {[%clk 0:00:26]}  Bf2 {[%clk 0:00:33]} 55. fxg5 {[%clk 0:00:26]}  Bxd4 {[%clk 0:00:33]} 56. Kf5 {[%clk 0:00:27]}  Kd6 {[%clk 0:00:32]} 57. Kg6 {[%clk 0:00:25]}  Bc3 {[%clk 0:00:31]} 58. Bf7 {[%clk 0:00:23]}  Be5 {[%clk 0:00:32]} 59. h6 {[%clk 0:00:20]}  gxh6 {[%clk 0:00:31]} 60. gxh6 {[%clk 0:00:20]}  d4 {[%clk 0:00:31]} 61. Bc4 {[%clk 0:00:20]}  Ke7 {[%clk 0:00:28]} 62. Bd3 {[%clk 0:00:20]}  Kf8 {[%clk 0:00:28]} 63. h7 {[%clk 0:00:20]}  Bh8 {[%clk 0:00:28]} 64. Bc4 {[%clk 0:00:21]}  Ke7 {[%clk 0:00:28]} 65. Bd3 {[%clk 0:00:21]}  Kf8 {[%clk 0:00:28]} 66. Bc4 {[%clk 0:00:22]}  Ke7 {[%clk 0:00:29]} 67. Bd3 {[%clk 0:00:22]}  Kf8 {[%clk 0:00:30]} 1/2-1/2


[Site "https://www.chess.com"]

[Event "Titled Tuesday Blitz August 22 Early 2023"]
[White "Plazuelo Pascual, Juan"]
[Black "Eljanov, Pavel"]
[WhiteFideId "32059566"]
[BlackFideId "14102951"]
[WhiteElo "2637"]
[BlackElo "2911"]
[Result "1/2-1/2"]
[Round "3"]
[TimeControl "180+1"]
[Date "2023.08.22"]
[WhiteClock "0:00:10"]
[BlackClock "0:00:33"]
[Board "34"]

1. e4 {[%clk 0:03:00]}  c6 {[%clk 0:02:59]} 2. d4 {[%clk 0:03:00]}  d5 {[%clk 0:03:00]} 3. f3 {[%clk 0:02:51]}  e6 {[%clk 0:02:59]} 4. Nc3 {[%clk 0:02:51]}  Bb4 {[%clk 0:02:58]} 5. a3 {[%clk 0:02:51]}  Bxc3+ {[%clk 0:02:56]} 6. bxc3 {[%clk 0:02:52]}  b6 {[%clk 0:02:52]} 7. a4 {[%clk 0:02:44]}  Ba6 {[%clk 0:02:49]} 8. Bxa6 {[%clk 0:02:44]}  Nxa6 {[%clk 0:02:49]} 9. Qe2 {[%clk 0:02:43]}  Nc7 {[%clk 0:02:45]} 10. Ba3 {[%clk 0:02:42]}  Ne7 {[%clk 0:02:44]} 11. Nh3 {[%clk 0:02:42]}  O-O {[%clk 0:02:39]} 12. O-O {[%clk 0:02:35]}  Re8 {[%clk 0:02:31]} 13. c4 {[%clk 0:02:35]}  Qc8 {[%clk 0:02:19]} 14. cxd5 {[%clk 0:02:26]}  cxd5 {[%clk 0:02:19]} 15. c4 {[%clk 0:02:23]}  Qa6 {[%clk 0:02:15]} 16. Rfc1 {[%clk 0:02:22]}  Nc6 {[%clk 0:02:06]} 17. Bb2 {[%clk 0:02:22]}  Na5 {[%clk 0:02:04]} 18. Qf2 {[%clk 0:01:48]}  Nxc4 {[%clk 0:02:03]} 19. Bc3 {[%clk 0:01:44]}  Rec8 {[%clk 0:01:42]} 20. Qg3 {[%clk 0:01:42]}  Ne8 {[%clk 0:01:42]} 21. Nf4 {[%clk 0:01:33]}  Qb7 {[%clk 0:01:34]} 22. exd5 {[%clk 0:01:05]}  exd5 {[%clk 0:01:34]} 23. Re1 {[%clk 0:01:06]}  Nf6 {[%clk 0:01:32]} 24. Bb4 {[%clk 0:01:06]}  Re8 {[%clk 0:01:31]} 25. h4 {[%clk 0:01:01]}  a5 {[%clk 0:01:29]} 26. Bc3 {[%clk 0:01:02]}  Qd7 {[%clk 0:01:29]} 27. Nd3 {[%clk 0:00:53]}  Rxe1+ {[%clk 0:01:27]} 28. Bxe1 {[%clk 0:00:50]}  Re8 {[%clk 0:01:16]} 29. Ne5 {[%clk 0:00:45]}  Qf5 {[%clk 0:01:16]} 30. Bc3 {[%clk 0:00:37]}  Nh5 {[%clk 0:01:15]} 31. Qg5 {[%clk 0:00:24]}  Qxg5 {[%clk 0:01:15]} 32. hxg5 {[%clk 0:00:25]}  Nf4 {[%clk 0:01:16]} 33. Kf2 {[%clk 0:00:24]}  Nxe5 {[%clk 0:01:13]} 34. dxe5 {[%clk 0:00:25]}  Nd3+ {[%clk 0:01:12]} 35. Kg3 {[%clk 0:00:20]}  Nxe5 {[%clk 0:01:12]} 36. Re1 {[%clk 0:00:20]}  f6 {[%clk 0:01:11]} 37. f4 {[%clk 0:00:07]}  Rc8 {[%clk 0:01:11]} 38. Bxe5 {[%clk 0:00:08]}  fxe5 {[%clk 0:01:10]} 39. Rxe5 {[%clk 0:00:09]}  Rc3+ {[%clk 0:01:01]} 40. Kg4 {[%clk 0:00:09]}  Rc4 {[%clk 0:00:58]} 41. Rxd5 {[%clk 0:00:08]}  Rxa4 {[%clk 0:00:58]} 42. Kf5 {[%clk 0:00:08]}  Rc4 {[%clk 0:00:53]} 43. Rd8+ {[%clk 0:00:08]}  Kf7 {[%clk 0:00:53]} 44. Rd7+ {[%clk 0:00:09]}  Kf8 {[%clk 0:00:54]} 45. Rb7 {[%clk 0:00:08]}  Rc6 {[%clk 0:00:48]} 46. Rb8+ {[%clk 0:00:08]}  Ke7 {[%clk 0:00:41]} 47. Rb7+ {[%clk 0:00:09]}  Kf8 {[%clk 0:00:34]} 48. Rb8+ {[%clk 0:00:09]}  Kf7 {[%clk 0:00:34]} 49. Rb7+ {[%clk 0:00:10]}  Kf8 {[%clk 0:00:33]} 1/2-1/2


[Site "https://www.chess.com"]

[Event "Titled Tuesday Blitz August 22 Early 2023"]
[White "Tahbaz, Arash"]
[Black "Chen, Ryo"]
[WhiteFideId "12528846"]
[BlackFideId "7003072"]
[WhiteElo "2900"]
[BlackElo "2635"]
[Result "1-0"]
[Round "3"]
[TimeControl "180+1"]
[Date "2023.08.22"]
[WhiteClock "0:00:15"]
[BlackClock "0:00:15"]
[Board "36"]

1. Nf3 {[%clk 0:03:00]}  Nf6 {[%clk 0:02:58]} 2. g3 {[%clk 0:03:01]}  g6 {[%clk 0:02:58]} 3. Bg2 {[%clk 0:03:01]}  Bg7 {[%clk 0:02:56]} 4. O-O {[%clk 0:03:02]}  O-O {[%clk 0:02:57]} 5. c4 {[%clk 0:03:02]}  d6 {[%clk 0:02:57]} 6. Nc3 {[%clk 0:03:03]}  e5 {[%clk 0:02:55]} 7. d3 {[%clk 0:03:03]}  Nc6 {[%clk 0:02:55]} 8. Rb1 {[%clk 0:03:03]}  a5 {[%clk 0:02:50]} 9. a3 {[%clk 0:03:03]}  Re8 {[%clk 0:02:49]} 10. Nd2 {[%clk 0:02:54]}  Ne7 {[%clk 0:02:41]} 11. b4 {[%clk 0:02:53]}  axb4 {[%clk 0:02:37]} 12. axb4 {[%clk 0:02:54]}  c6 {[%clk 0:02:38]} 13. b5 {[%clk 0:02:54]}  d5 {[%clk 0:02:38]} 14. Qb3 {[%clk 0:02:45]}  Be6 {[%clk 0:02:33]} 15. Ba3 {[%clk 0:02:42]}  e4 {[%clk 0:01:56]} 16. dxe4 {[%clk 0:02:33]}  dxc4 {[%clk 0:01:54]} 17. Nxc4 {[%clk 0:02:10]}  Bxc4 {[%clk 0:01:52]} 18. Bxe7 {[%clk 0:02:09]}  Bxb3 {[%clk 0:01:46]} 19. Bxd8 {[%clk 0:02:09]}  Bc2 {[%clk 0:01:21]} 20. Bxf6 {[%clk 0:02:09]}  Bxf6 {[%clk 0:01:22]} 21. Rbc1 {[%clk 0:02:08]}  Bb3 {[%clk 0:01:14]} 22. bxc6 {[%clk 0:02:08]}  bxc6 {[%clk 0:01:15]} 23. e3 {[%clk 0:01:24]}  Rad8 {[%clk 0:01:06]} 24. Rfe1 {[%clk 0:01:15]}  Rd3 {[%clk 0:00:54]} 25. Ne2 {[%clk 0:01:10]}  Rc8 {[%clk 0:00:50]} 26. Nf4 {[%clk 0:00:53]}  Rd2 {[%clk 0:00:49]} 27. Nd5 {[%clk 0:00:52]}  Kg7 {[%clk 0:00:29]} 28. Nxf6 {[%clk 0:00:48]}  Kxf6 {[%clk 0:00:30]} 29. Rc3 {[%clk 0:00:47]}  Be6 {[%clk 0:00:27]} 30. Rec1 {[%clk 0:00:45]}  c5 {[%clk 0:00:27]} 31. Bf1 {[%clk 0:00:41]}  Ke5 {[%clk 0:00:24]} 32. f3 {[%clk 0:00:14]}  Kd6 {[%clk 0:00:23]} 33. R1c2 {[%clk 0:00:14]}  Rxc2 {[%clk 0:00:22]} 34. Rxc2 {[%clk 0:00:15]}  c4 {[%clk 0:00:22]} 35. Kf2 {[%clk 0:00:15]}  Kc5 {[%clk 0:00:23]} 36. f4 {[%clk 0:00:09]}  Kb4 {[%clk 0:00:21]} 37. Be2 {[%clk 0:00:09]}  c3 {[%clk 0:00:21]} 38. Rc1 {[%clk 0:00:06]}  c2 {[%clk 0:00:20]} 39. Bd3 {[%clk 0:00:02]}  Kb3 {[%clk 0:00:17]} 40. Ke1 {[%clk 0:00:03]}  Kb2 {[%clk 0:00:17]} 41. Kd2 {[%clk 0:00:03]}  Bb3 {[%clk 0:00:18]} 42. e5 {[%clk 0:00:01]}  Rd8 {[%clk 0:00:14]} 43. Rg1 {[%clk 0:00:01]}  c1=Q+ {[%clk 0:00:13]} 44. Rxc1 {[%clk 0:00:01]}  Rxd3+ {[%clk 0:00:13]} 45. Kxd3 {[%clk 0:00:02]}  Kxc1 {[%clk 0:00:13]} 46. Kd4 {[%clk 0:00:02]}  Kd2 {[%clk 0:00:14]} 47. e4 {[%clk 0:00:03]}  Ke2 {[%clk 0:00:14]} 48. f5 {[%clk 0:00:03]}  Kf3 {[%clk 0:00:14]} 49. e6 {[%clk 0:00:03]}  fxe6 {[%clk 0:00:12]} 50. f6 {[%clk 0:00:04]}  e5+ {[%clk 0:00:13]} 51. Kxe5 {[%clk 0:00:04]}  h5 {[%clk 0:00:11]} 52. h4 {[%clk 0:00:03]}  Kg4 {[%clk 0:00:11]} 53. Kd6 {[%clk 0:00:03]}  Bc4 {[%clk 0:00:11]} 54. Ke7 {[%clk 0:00:02]}  Kxg3 {[%clk 0:00:07]} 55. e5 {[%clk 0:00:02]}  Kg4 {[%clk 0:00:06]} 56. e6 {[%clk 0:00:03]}  Kxh4 {[%clk 0:00:05]} 57. f7 {[%clk 0:00:03]}  g5 {[%clk 0:00:06]} 58. f8=Q {[%clk 0:00:04]}  g4 {[%clk 0:00:07]} 59. Qf2+ {[%clk 0:00:04]}  g3 {[%clk 0:00:07]} 60. Qf4+ {[%clk 0:00:04]}  Kh3 {[%clk 0:00:08]} 61. Qxc4 {[%clk 0:00:04]}  g2 {[%clk 0:00:08]} 62. Qd3+ {[%clk 0:00:04]}  Kh2 {[%clk 0:00:07]} 63. Qd6+ {[%clk 0:00:03]}  Kh1 {[%clk 0:00:07]} 64. Qd5 {[%clk 0:00:04]}  Kh2 {[%clk 0:00:07]} 65. Qxh5+ {[%clk 0:00:03]}  Kg3 {[%clk 0:00:07]} 66. Qg5+ {[%clk 0:00:04]}  Kf2 {[%clk 0:00:08]} 67. Qxg2+ {[%clk 0:00:05]}  Kxg2 {[%clk 0:00:08]} 68. Kf7 {[%clk 0:00:06]}  Kh1 {[%clk 0:00:09]} 69. e7 {[%clk 0:00:07]}  Kg1 {[%clk 0:00:08]} 70. e8=Q {[%clk 0:00:08]}  Kh1 {[%clk 0:00:09]} 71. Qe6 {[%clk 0:00:09]}  Kh2 {[%clk 0:00:09]} 72. Qf6 {[%clk 0:00:09]}  Kh1 {[%clk 0:00:10]} 73. Qg6 {[%clk 0:00:10]}  Kh2 {[%clk 0:00:10]} 74. Kf6 {[%clk 0:00:11]}  Kh1 {[%clk 0:00:11]} 75. Kf5 {[%clk 0:00:12]}  Kh2 {[%clk 0:00:12]} 76. Qg4 {[%clk 0:00:13]}  Kh1 {[%clk 0:00:13]} 77. Kf4 {[%clk 0:00:14]}  Kh2 {[%clk 0:00:14]} 78. Kf3 {[%clk 0:00:14]}  Kh1 {[%clk 0:00:15]} 79. Qg2# {[%clk 0:00:15]} 1-0


[Site "https://www.chess.com"]

[Event "Titled Tuesday Blitz August 22 Early 2023"]
[White "Rasulov, Vugar"]
[Black "Mendez Fortes, Eduardo Jesus"]
[WhiteFideId "13402390"]
[BlackFideId "3502376"]
[WhiteElo "2887"]
[BlackElo "2634"]
[Result "1-0"]
[Round "3"]
[TimeControl "180+1"]
[Date "2023.08.22"]
[WhiteClock "0:00:04"]
[BlackClock "0:00:00"]
[Board "37"]

1. d4 {[%clk 0:03:00]}  Nf6 {[%clk 0:02:59]} 2. c4 {[%clk 0:03:01]}  e6 {[%clk 0:02:59]} 3. Nf3 {[%clk 0:03:01]}  d5 {[%clk 0:02:59]} 4. g3 {[%clk 0:03:02]}  dxc4 {[%clk 0:02:59]} 5. Bg2 {[%clk 0:03:02]}  a6 {[%clk 0:03:00]} 6. Ne5 {[%clk 0:02:57]}  Bb4+ {[%clk 0:02:58]} 7. Nc3 {[%clk 0:02:56]}  Nd5 {[%clk 0:02:57]} 8. Bd2 {[%clk 0:02:48]}  b5 {[%clk 0:02:56]} 9. O-O {[%clk 0:02:46]}  Bxc3 {[%clk 0:02:56]} 10. bxc3 {[%clk 0:02:46]}  Bb7 {[%clk 0:02:36]} 11. a4 {[%clk 0:02:39]}  c6 {[%clk 0:02:31]} 12. Qb1 {[%clk 0:02:31]}  Qc8 {[%clk 0:02:30]} 13. e4 {[%clk 0:02:28]}  Ne7 {[%clk 0:02:29]} 14. Qb4 {[%clk 0:02:11]}  Nd7 {[%clk 0:02:19]} 15. axb5 {[%clk 0:01:52]}  cxb5 {[%clk 0:02:03]} 16. f4 {[%clk 0:01:35]}  f6 {[%clk 0:01:34]} 17. Ng4 {[%clk 0:01:24]}  Qc7 {[%clk 0:01:05]} 18. Ne3 {[%clk 0:01:14]}  Kf7 {[%clk 0:00:49]} 19. f5 {[%clk 0:01:08]}  exf5 {[%clk 0:00:46]} 20. Nxf5 {[%clk 0:00:55]}  Nxf5 {[%clk 0:00:46]} 21. Rxf5 {[%clk 0:00:56]}  Rhe8 {[%clk 0:00:42]} 22. Bf4 {[%clk 0:00:49]}  Qb6 {[%clk 0:00:35]} 23. Rh5 {[%clk 0:00:21]}  Bxe4 {[%clk 0:00:31]} 24. Bxe4 {[%clk 0:00:19]}  Rxe4 {[%clk 0:00:32]} 25. Rxb5 {[%clk 0:00:19]}  Qxb5 {[%clk 0:00:30]} 26. Qxb5 {[%clk 0:00:19]}  axb5 {[%clk 0:00:31]} 27. Rxa8 {[%clk 0:00:20]}  b4 {[%clk 0:00:31]} 28. Ra7 {[%clk 0:00:17]}  Ke6 {[%clk 0:00:29]} 29. d5+ {[%clk 0:00:17]}  Ke7 {[%clk 0:00:28]} 30. cxb4 {[%clk 0:00:17]}  c3 {[%clk 0:00:27]} 31. Rc7 {[%clk 0:00:18]}  Rxb4 {[%clk 0:00:25]} 32. Rxc3 {[%clk 0:00:18]}  Rd4 {[%clk 0:00:25]} 33. d6+ {[%clk 0:00:17]}  Ke6 {[%clk 0:00:23]} 34. Rc7 {[%clk 0:00:17]}  g5 {[%clk 0:00:20]} 35. Be3 {[%clk 0:00:17]}  Rxd6 {[%clk 0:00:20]} 36. Kf2 {[%clk 0:00:18]}  h5 {[%clk 0:00:19]} 37. Ke2 {[%clk 0:00:17]}  Ne5 {[%clk 0:00:19]} 38. Rh7 {[%clk 0:00:16]}  Kf5 {[%clk 0:00:15]} 39. Rxh5 {[%clk 0:00:16]}  Re6 {[%clk 0:00:16]} 40. Kf1 {[%clk 0:00:14]}  Kg6 {[%clk 0:00:13]} 41. Rh8 {[%clk 0:00:12]}  Nf7 {[%clk 0:00:13]} 42. Rg8+ {[%clk 0:00:13]}  Kh7 {[%clk 0:00:13]} 43. Rf8 {[%clk 0:00:13]}  Kg7 {[%clk 0:00:13]} 44. Bc5 {[%clk 0:00:14]}  Ne5 {[%clk 0:00:13]} 45. Ra8 {[%clk 0:00:12]}  Rc6 {[%clk 0:00:13]} 46. Bd4 {[%clk 0:00:12]}  Nf3 {[%clk 0:00:13]} 47. Rd8 {[%clk 0:00:08]}  Nxh2+ {[%clk 0:00:11]} 48. Ke2 {[%clk 0:00:09]}  Ng4 {[%clk 0:00:11]} 49. Kf3 {[%clk 0:00:09]}  Nh6 {[%clk 0:00:11]} 50. Ke4 {[%clk 0:00:09]}  Kg6 {[%clk 0:00:11]} 51. Kd5 {[%clk 0:00:09]}  Ra6 {[%clk 0:00:12]} 52. Bc3 {[%clk 0:00:06]}  Nf5 {[%clk 0:00:11]} 53. Be1 {[%clk 0:00:06]}  Ra1 {[%clk 0:00:11]} 54. Re8 {[%clk 0:00:05]}  Rd1+ {[%clk 0:00:11]} 55. Kc4 {[%clk 0:00:05]}  Rc1+ {[%clk 0:00:11]} 56. Kd3 {[%clk 0:00:06]}  Rc7 {[%clk 0:00:12]} 57. Bf2 {[%clk 0:00:04]}  Re7 {[%clk 0:00:11]} 58. Rg8+ {[%clk 0:00:04]}  Kf7 {[%clk 0:00:12]} 59. Ra8 {[%clk 0:00:05]}  Rd7+ {[%clk 0:00:12]} 60. Ke4 {[%clk 0:00:05]}  Nd6+ {[%clk 0:00:12]} 61. Kf3 {[%clk 0:00:06]}  Kg6 {[%clk 0:00:12]} 62. Ra6 {[%clk 0:00:06]}  Nf7 {[%clk 0:00:12]} 63. Be3 {[%clk 0:00:05]}  Ne5+ {[%clk 0:00:12]} 64. Kg2 {[%clk 0:00:05]}  Kf5 {[%clk 0:00:12]} 65. Bc5 {[%clk 0:00:05]}  Rd2+ {[%clk 0:00:11]} 66. Kf1 {[%clk 0:00:06]}  Rc2 {[%clk 0:00:07]} 67. Bd4 {[%clk 0:00:05]}  Ng4 {[%clk 0:00:07]} 68. Rb6 {[%clk 0:00:05]}  Ke4 {[%clk 0:00:07]} 69. Bxf6 {[%clk 0:00:05]}  Kf3 {[%clk 0:00:07]} 70. Ke1 {[%clk 0:00:04]}  Ne3 {[%clk 0:00:06]} 71. Rb2 {[%clk 0:00:03]}  Rc1+ {[%clk 0:00:04]} 72. Kd2 {[%clk 0:00:04]}  Rd1+ {[%clk 0:00:05]} 73. Kc3 {[%clk 0:00:04]}  Nd5+ {[%clk 0:00:04]} 74. Kc2 {[%clk 0:00:05]}  Ne3+ {[%clk 0:00:05]} 75. Kb3 {[%clk 0:00:05]}  Rd3+ {[%clk 0:00:04]} 76. Ka4 {[%clk 0:00:05]}  g4 {[%clk 0:00:05]} 77. Be5 {[%clk 0:00:05]}  Nf5 {[%clk 0:00:04]} 78. Rb8 {[%clk 0:00:04]}  Nxg3 {[%clk 0:00:04]} 79. Kb4 {[%clk 0:00:04]}  Re3 {[%clk 0:00:04]} 80. Rf8+ {[%clk 0:00:03]}  Kg2 {[%clk 0:00:04]} 81. Bc7 {[%clk 0:00:04]}  Re4+ {[%clk 0:00:04]} 82. Kc3 {[%clk 0:00:04]}  Re3+ {[%clk 0:00:03]} 83. Kd2 {[%clk 0:00:04]}  Rf3 {[%clk 0:00:03]} 84. Rg8 {[%clk 0:00:04]}  Ne4+ {[%clk 0:00:03]} 85. Ke2 {[%clk 0:00:04]}  g3 {[%clk 0:00:03]} 86. Be5 {[%clk 0:00:03]}  Nc3+ {[%clk 0:00:00]} 87. Kd2 {[%clk 0:00:04]} 1-0


[Site "https://www.chess.com"]